Cogmind - Beta 15 @@@ ROGUE MODE // 2025.08.06 @ 01:32:26 Player: lvl5hm Result: Self-destructed Performance ------------- Evolutions (1) 500 Regions Visited (3) 600 Robots Destroyed (1) 5 Value Destroyed (1) 1 Prototype IDs (0) 0 Alien Tech Used (0) 0 Bonus (200) 200 TOTAL SCORE: 1306 Bonus ------- Pacifist 200 Cogmind --------- Core Integrity 327/400 Matter 230/300 Energy 80/100 System Corruption 0% Temperature Cool (0) Movement Core (50) Location -9/Materials Parts ------- > --- POWER (1) -------- (None) > --- PROPULSION (4) --- Advanced Treads Advanced Treads Advanced Treads Advanced Treads > --- UTILITY (2) ------ Visual Processing Unit > --- WEAPON (2) ------- Flail > --- INVENTORY (5) ---- Light Ion Engine Improved Treads Improved Signal Interpreter Terrain Scanner Grenade Launcher Peak State ------------ > --- POWER ------------ (None) > --- PROPULSION ------- Advanced Treads Advanced Treads Advanced Treads Advanced Treads > --- UTILITY ---------- Visual Processing Unit > --- WEAPON ----------- Flail > --- INVENTORY -------- Light Ion Engine Improved Treads Improved Signal Interpreter Terrain Scanner Grenade Launcher [Rating: 16] Favorites ----------- Power None Propulsion Light Treads Treads Light Treads Utility Visual Processing Unit Processor Visual Processing Unit Weapon Flail Impact Weapon Flail Build | -11 -10 -10 -9 ------- Run | Yrd Mat Min Mat Slots Evolved 2 | . . . 2 Power . | . . . . Propulsion 2 | . . . 2 Utility . | . . . . Weapon . | . . . . Parts Attached 9 | 2 1 . 6 Power . | . . . . Engine . | . . . . Core . | . . . . Reactor . | . . . . Propulsion 7 | 2 . . 5 Treads 7 | 2 . . 5 Leg . | . . . . Wheel . | . . . . Hover . | . . . . Flight . | . . . . Utility 1 | . . . 1 Device . | . . . . Storage . | . . . . Processor 1 | . . . 1 Hackware . | . . . . Protection . | . . . . Artifact . | . . . . Weapon 1 | . 1 . . Energy Gun . | . . . . Energy Cannon . | . . . . Ballistic Gun . | . . . . Ballistic Cannon . | . . . . Launcher . | . . . . Special Weapon . | . . . . Impact Weapon 1 | . 1 . . Slashing Weapon . | . . . . Piercing Weapon . | . . . . Special Melee Weapon . | . . . . Unidentified Prototypes . | . . . . Parts Lost . | . . . . Power . | . . . . Propulsion . | . . . . Utility . | . . . . Weapon . | . . . . Highest Loss Streak . | . . . . To Critical Strikes . | . . . . Average Backups 2 | . 1 2 3 Power . | . 1 1 1 Propulsion . | . . . . Utility . | . . . 1 Weapon . | . . 1 1 Tool/Special . | . . . . Unused Backups 4 | . . . 4 Power 1 | . . . 1 Propulsion . | . . . . Utility 2 | . . . 2 Weapon 1 | . . . 1 Tool/Special . | . . . . Average Slot Usage (%) 44 | . 30 42 53 Treads 30 | . 28 28 33 Processor 5 | . . . 9 Impact Weapon 8 | . 2 14 11 Peak Build Rating 16 | 2 4 4 16 Average Rating 5 | 1 2 4 9 On Entrance 2 | . 2 4 4 Naked Turns . | . . . . Heaviest Build 2 | . 2 2 2 Greatest Support 23 | 20 3 3 23 Greatest Overweight (x) . | . . . . Average Overweight (x) . | . . . . Largest Inventory Capacity 5 | 5 5 5 5 Average Capacity 5 | 5 5 5 5 Most Carried 5 | 1 2 2 5 Average Carried 2 | . 1 2 3 Final Capacity 5 | 5 5 5 5 Final Carried 5 | 1 2 2 5 Class Distribution -------------------- 100% | Mutant Dominant Class ---------------- Mutant | -10/Materials Mutant | -10/Mines Mutant | -9/Materials Resources | -11 -10 -10 -9 ----------- Run | Yrd Mat Min Mat Matter Collected 220 | 220 . . . Remotely . | . . . . Salvage Created 20 | . . . 20 Parts . | . . . . Haulers Intercepted . | . . . . Recyclers Shooed . | . . . . Parts Field Recycled . | . . . . Retrieved Matter . | . . . . Parts Self-Destructed . | . . . . Prevented . | . . . . Kills | -11 -10 -10 -9 ------- Run | Yrd Mat Min Mat Combat Hostiles Destroyed . | . . . . Classes Destroyed 1 | . . . 1 Worker 1 | . . . 1 Best Kill Streak 1 | . . . 1 Combat Bots Only . | . . . . Max Kills in Single Turn 1 | . . . 1 Gunslinging . | . . . . Exploded . | . . . . Melee . | . . . . Uniques/NPCs Destroyed . | . . . . Combat | -11 -10 -10 -9 -------- Run | Yrd Mat Min Mat Hostile Shots Fired 76 | . . . 76 Missed 31 | . . . 31 Hits 45 | . . . 45 Projectile 45 | . . . 45 Critical Strikes 1 | . . . 1 Damage Taken 409 | . . . 409 Core 73 | . . . 73 Absorbed by Shields . | . . . . Core Remaining (%) 100 | 100 . 100 . Volleys Fired . | . . . . Largest . | . . . . Hottest . | . . . . Shots Fired . | . . . . Gun . | . . . . Cannon . | . . . . Launcher . | . . . . Special . | . . . . Kinetic . | . . . . Thermal . | . . . . Explosive . | . . . . Electromagnetic . | . . . . Robot Hit Streak . | . . . . Robot Miss Streak . | . . . . Penetration Max . | . . . . Secondary Targets . | . . . . Shots Hit Robots 1 | . . . 1 Core Hits . | . . . . Critical Kills . | . . . . Critical Parts Destroyed . | . . . . Critical Strikes . | . . . . Melee Attacks 1 | . . . 1 Impact 1 | . . . 1 Slashing . | . . . . Piercing . | . . . . Sneak Attacks 1 | . . . 1 Combat Hostiles . | . . . . Follow-up Attacks . | . . . . Damage Inflicted 99 | . . . 99 Guns . | . . . . Cannons . | . . . . Explosions . | . . . . Melee 99 | . . . 99 Ramming . | . . . . Kinetic . | . . . . Thermal . | . . . . Explosive . | . . . . Electromagnetic . | . . . . Impact 99 | . . . 99 Slashing . | . . . . Piercing . | . . . . Highest Corruption . | . . . . Average Corruption . | . . . . Corruption Purged . | . . . . Corruption Blocked . | . . . . Overload Shots . | . . . . Overflow Damage 84 | . . . 84 Projectiles . | . . . . Explosions . | . . . . Melee 84 | . . . 84 Knockbacks 1 | . . . 1 Impact 1 | . . . 1 Kinetic . | . . . . Secondary . | . . . . Self-Inflicted Damage . | . . . . Shots . | . . . . Rammed . | . . . . Targets Rammed . | . . . . Kicked . | . . . . Crushed . | . . . . Highest Temperature . | . . . . Average Temperature . | . . . . Received Heat Transfer 72 | . . . 72 Siege Activations . | . . . . Martial Activations . | . . . . Shielding Activations . | . . . . Robots Disrupted . | . . . . Combat Hostiles . | . . . . Robots Corrupted 1 | . . . 1 Combat Hostiles . | . . . . Parts Fried . | . . . . Impact Corruptions 3 | . . . 3 Robots Melted . | . . . . Combat Hostiles . | . . . . Parts Melted . | . . . . Heat Transferred . | . . . . Parts Sabotaged . | . . . . Parts Stolen . | . . . . Parts Stripped . | . . . . Power Chain Reactions . | . . . . Alert | -11 -10 -10 -9 ------- Run | Yrd Mat Min Mat Maximum Alert Level . | . . . . Low Security (%) 100 | 100 100 100 100 Level 1 . | . . . . Level 2 . | . . . . Level 3 . | . . . . Level 4 . | . . . . Level 5 . | . . . . High Security . | . . . . Max Security . | . . . . Peak Influence 92 | . 13 4 92 Initial 4 | . . 4 1 Average 25 | . 5 4 44 Influence Increases 140 | . 23 . 117 Destroy 0b10 Robot/NC 5 | . . . 5 Successful Hack 15 | . 8 . 7 Lose Combat Pursuer 120 | . 15 . 105 Influence Decreases 53 | . 10 9 34 Entered New Map 12 | . . 9 3 Time Decay 41 | . 10 . 31 Squads Dispatched . | . . . . Investigation . | . . . . Extermination . | . . . . Reinforcement . | . . . . Assault . | . . . . Garrison . | . . . . Intercept . | . . . . Searches Triggered . | . . . . Construction Impeded . | . . . . Haulers Reinforced . | . . . . Active Scanning Responses . | . . . . Cargo Convoy Interrupts . | . . . . Stealth | -11 -10 -10 -9 --------- Run | Yrd Mat Min Mat Distress Signals 1 | . 1 . . Communications Jammed . | . . . . Distress Signals . | . . . . Times Spotted 21 | . 1 . 20 Peak Tracking Total 14 | . 2 . 14 Tactical Retreats 4 | . 1 . 3 Traps | -11 -10 -10 -9 ------- Run | Yrd Mat Min Mat Traps Triggered . | . . . . Indirectly . | . . . . Trap Hack Attempts . | . . . . Triggered . | . . . . Disarmed . | . . . . Reprogrammed . | . . . . Reused . | . . . . Traps Extracted . | . . . . Installed . | . . . . Triggered . | . . . . Machines | -11 -10 -10 -9 ---------- Run | Yrd Mat Min Mat Machines Disabled . | . . . . Max in Single Turn . | . . . . Machines Repaired . | . . . . Machines Dismantled . | . . . . Machines Sabotaged . | . . . . Overloaded Fab Kills . | . . . . Hacking | -11 -10 -10 -9 --------- Run | Yrd Mat Min Mat Machines Accessed 2 | . 1 . 1 Terminals 2 | . 1 . 1 Fabricators . | . . . . Repair Stations . | . . . . Recycling Units . | . . . . Scanalyzers . | . . . . Garrison Access . | . . . . Total Hacks 4 | . 1 . 3 Successful 2 | . 1 . 1 Failed 2 | . . . 2 Catastrophic . | . . . . Database Lockouts . | . . . . Manual 1 | . 1 . . Terminals 4 | . 1 . 3 Fabricators . | . . . . Repair Stations . | . . . . Recycling Units . | . . . . Scanalyzers . | . . . . Garrison Access . | . . . . Terminal Hacks 2 | . 1 . 1 Branch Access Points 2 | . 1 . 1 Fabricator Hacks . | . . . . Repair Station Hacks . | . . . . Recycling Unit Hacks . | . . . . Scanalyzer . | . . . . Garrison Access Hacks . | . . . . Unauthorized Hacks . | . . . . Terminals . | . . . . Fabricators . | . . . . Repair Stations . | . . . . Recycling Units . | . . . . Scanalyzers . | . . . . Garrison Access . | . . . . Data Cores Recovered . | . . . . Used . | . . . . Hacking Detections . | . . . . Full Trace Events . | . . . . Feedback Events . | . . . . Feedback Blocked . | . . . . Robot Schematics Acquired . | . . . . Robots Built . | . . . . Authchips . | . . . . Time . | . . . . Total Robot Build Rating . | . . . . Part Schematics Acquired . | . . . . Parts Built . | . . . . Authchips . | . . . . Time . | . . . . Total Part Build Rating . | . . . . Parts Repaired . | . . . . Time . | . . . . Parts Recycled . | . . . . Recycled Matter . | . . . . Retrieved Matter . | . . . . Retrieved Components . | . . . . Parts Scanalyzed . | . . . . Part Schematics Acquired . | . . . . Parts Damaged . | . . . . Bothacking | -11 -10 -10 -9 ------------ Run | Yrd Mat Min Mat Used RIF Installer . | . . . . Robots Hacked . | . . . . Non-combat . | . . . . Combat . | . . . . Robot Hacks Applied . | . . . . Relay Couplers Released . | . . . . Fabnet Peak Effective % . | . . . . Robots Rewired . | . . . . Allies Hacked . | . . . . Hacks Repelled . | . . . . Allies | -11 -10 -10 -9 -------- Run | Yrd Mat Min Mat Total Allies . | . . . . Largest Group . | . . . . Highest-Rated Group . | . . . . Highest-Rated Ally . | . . . . Total Orders . | . . . . Ally Attacks . | . . . . Total Damage . | . . . . Kills . | . . . . Allies Corrupted . | . . . . Allies Melted . | . . . . Intel | -11 -10 -10 -9 ------- Run | Yrd Mat Min Mat Active Infowar (turns) 99 | . . . 99 Optics 99 | . . . 99 Robot Analysis Total . | . . . . Derelict Logs Recovered 1 | . . 1 . Drone Launches . | . . . . Drone Recoveries . | . . . . Exploration | -11 -10 -10 -9 ------------- Run | Yrd Mat Min Mat Turns Passed 213 | 31 58 12 112 Spaces Moved 367 | 46 111 23 187 Core 359 | 42 111 23 183 Treads 8 | 4 . . 4 Legs . | . . . . Wheels . | . . . . Hover . | . . . . Flight . | . . . . Fastest Speed 50 | 50 50 50 50 Average Speed 52 | 59 50 50 52 Slowest Speed 160 | 160 50 50 160 Overloaded Moves . | . . . . Propulsion Burnouts . | . . . . Robots Hopped . | . . . . Potential Cave-ins . | . . . . Cave-ins Triggered . | . . . . Exploration Rate (%) 20 | 4 29 14 35 Regions Visited 3 Branch Regions 1 Pre-discovered Areas 1 | . . 1 . Known Exits Taken 1 | . 1 . . Unknown Exits Taken 2 | 1 . 1 . Scrap Searched . | . . . . Spaces Dug . | . . . . Terrain Destroyed . | . . . . Melee . | . . . . Projectile . | . . . . AOE . | . . . . Terrain Rammed . | . . . . Walls Destroyed . | . . . . Machines Disabled . | . . . . Actions | -11 -10 -10 -9 --------- Run | Yrd Mat Min Mat Total 380 | 48 112 22 198 Wait . | . . . . Move 364 | 45 110 22 187 Hop . | . . . . Pick Up 4 | 1 1 . 2 Fast Attach 6 | 2 1 . 3 Attach . | . . . . Detach . | . . . . Swap 3 | . . . 3 Drop 2 | . . . 2 Fire . | . . . . Melee 1 | . . . 1 Ram . | . . . . Kick . | . . . . Crush . | . . . . Escape Stasis . | . . . . Rewire . | . . . . Trap . | . . . . Miscellaneous . | . . . . Route ------- -11/Scrapyard -10/Materials -10/Mines -9/Materials (discovered 1 exit: *Min) History --------- Turn | Location | Event 16 | -11/Scrapyard | Discovered new exit (range 16) 32 | -11/Scrapyard | Entered Materials 64 | -10/Materials | Identified exit to Mines 90 | -10/Materials | Entered Mines 94 | -10/Mines | Learned location of Zion (-7) 97 | -10/Mines | Discovered new exit (range 12) 102 | -10/Mines | Entered Materials 102 | -9/Materials | Evolved 2 slots: Propulsion x2 171 | -9/Materials | Identified exit to Mines 214 | -9/Materials | Self-destructed Last Messages --------------- 00174_ K-01 Serf collects debris. 00184_ T-07 Excavator is excavating. 00184_ Acquired Imp. Signal Interpreter. 00188_ Acquired Adv. Treads. 00192_ Dropped Lgt. Treads. 00201_ T-07 Excavator is excavating. 00201_ K-01 Serf collects debris. 00205_ O-16 Technician: "IFF HANDSHAKE FAILED. SECURING TERMINAL." 00205_ K-01 Serf collects debris. 00207_ S-10 Pest destroyed. 00209_ K-01 Serf collects debris. 00211_ Sneak attack on K-01 Serf. 00211_ Destroyed Sml. Matter Pod. 00211_ Destroyed Wheel. 00211_ Destroyed Lgt. Ion Engine. 00211_ K-01 Serf system corrupted by crushing effect. 00211_ K-01 Serf knocked back. 00212_ K-01 Serf system terminally corrupted. Map ----- +----------------------------------------------------+ | ????# # #??? ?????? | | ????# #### # #??????????## | | ????# ##+#+#??? # #??????????? | | ????# #???????? # #??????????? | | ????# " #???????? # #???????????? | | ????# "" #???????? # #???????????? | | ????# "" #???????? # #???????????? | | ????# """ #???????? # #######?????? | | ????+ "" #???????? ######/### ####### | | ????# """ #???????? ????# | | ????# """ #?????????????# | | ????### """ #???????# | | ?###### " #???????# | | ?#== ## ######### ######## | | ?# #??????# """ | | ?#]] #??????# =/ """ | | ?#]] #??????# =! """ | | ?#! ###"T"########## ???????# | | ?#!! #?#####????????# ? ? ?????? ] | | ?##### # #???????????#? ??????#?? # | | ?????# # #???????????? ????? #?! # | | ?????+ #????????????# ????? #?! " # | | ?????# ########???#########? ##! T !! # | | ?????# ## ##### # w ###! " !! | | ?????# %s #?#### ### | | ?????# * Y s %>@ #????? #?? | | ?????# Ys #????? ######?? | | ?????## ### #####" "## #????? ???????? | | ??????# #?###+###???#" !"! "#??? #???????????????? | | ??????# #??* ????#"""""""#????????????????????? | | ??????# #*** """ ??#########????????????????????? | | ??????# #*** """ #??????????????????????????????? | | ??????# # """ #??????????????????????????????? | | ??????# # ! #??????????????????????????????? | | ??????# # "T" #??????????????????????????????? | | ??????# # """ #??????????????????????????????? | | ??????# # ??#??????????????????????????????? | | ??????? #######??????????????????????????????????? | | ??????? ?????????????????????????????????????????? | | ??????? ?????????????????????????????????????????? | | ??????? ?????????????????????????????????????????? | | ?????????????????????????????????????????????????? | | ?????????????????????????????????????????????????? | | ?????????????????????????????????????????????????? | | ?????????????????????????????????????????????????? | | ?????????????????????????????????????????????????? | | ?????????????????????????????????????????????????? | | ?????????????????????????????????????????????????? | | ?????????????????????????????????????????????????? | | ?????????????????????????????????????????????????? | +----------------------------------------------------+ Best States ------------- Heat Dissipation 28 Energy Generation 5 Energy Capacity 100 Matter Stores 300 Matter Capacity 300 Sight Range 18 Terrain Scan Density 10 Evasion (%) 50 Recoil Reduction 1 Item Schematics ----------------- None Robot Schematics ------------------ None Fabricated ------------ Nothing Repaired ---------- Nothing Alien Tech Used ----------------- None Achievements -------------- None Challenges ------------ None Game ------ Seed IntegrityAssaultMediator Manual? 0 Play Time 00:04:41 Cumulative 110.2 hours Start 2025.08.06 @ 01:29:32 End 2025.08.06 @ 01:32:26 Sessions 1 Manual Loads 0 Difficulty Rogue Special Mode None Game No. 97 Rogue 97 Adventurer 0 Explorer 0 Win Type - Total 3 Types 3/0/0/0/0/0/0/0/0/0 Lore% 29 Gallery% 48 Achievement% 45 Wizard Run 0 Options --------- Layout 2 ASCII 0 Keyboard 1 Movement Arrows Keybinds 0 Fullscreen 1 Font 32/Tamsyn Map View 50x44 Zoom Use 0% Tactical HUD 1 Map Filters NONE Filters NONE Steam 1 RUN: ffd6fbc0-311e-4394-8565-ee0235554909